bitfinex-derivatives/quotes_BTCF0:USTF0_20251208
["timestamp","ask_amount","ask_price","bid_price","bid_amount"]
[1765169834481,0.05784,91306.0,91305.0,0.56566426]
[1765169835284,0.05784,91306.0,91305.0,0.57693893]
[1765169835982,0.05884,91306.0,91305.0,0.57693893]
[1765169837786,0.001,91306.0,91305.0,0.58587893]
[1765169837984,0.02948,91306.0,91305.0,0.58587893]
[1765169838186,0.05884,91306.0,91305.0,0.58587893]
[1765169838487,0.001,91306.0,91305.0,0.58587893]
[1765169838885,0.3608,91319.0,91305.0,0.59683143]
[1765169839084,0.38928,91319.0,91318.0,0.05734]
[1765169839287,0.41864,91319.0,91318.0,0.56542]
[1765169840684,0.41964,91319.0,91318.0,0.56542]
[1765169841286,0.05784,91306.0,91305.0,0.06877893]
[1765169841583,0.05784,91306.0,91305.0,0.57681893]
[1765169842191,0.05784,91306.0,91305.0,0.58777143]
[1765169843391,0.05884,91306.0,91305.0,0.58777143]
[1765169844393,0.05884,91306.0,91305.0,0.57681893]
[1765169850292,0.3608,91319.0,91305.0,0.57681893]
[1765169850293,0.02864426,91324.0,91318.0,0.05734]
[1765169850488,0.05800426,91324.0,91323.0,0.41814]
[1765169851392,0.05114606,91324.0,91323.0,0.41814]
[1765169852795,0.05214606,91324.0,91323.0,0.41914]
[1765169853193,0.005,91324.0,91323.0,0.41914]
[1765169853398,0.06284,91324.0,91323.0,0.41914]
[1765169853598,0.05984,91324.0,91323.0,0.41814]
[1765169859500,0.03048,91324.0,91323.0,0.41814]
[1765169859698,0.05984,91324.0,91323.0,0.41814]
[1765169861003,0.03048,91324.0,91323.0,0.41814]
[1765169861506,0.002,91324.0,91323.0,0.41814]
[1765169862299,0.002,91324.0,91323.0,0.47694412]
[1765169862505,0.002,91324.0,91323.0,0.98482412]
[1765169862892,0.002,91324.0,91323.0,0.41814]
[1765169863501,0.002,91324.0,91323.0,0.92602]
[1765169863901,0.002,91324.0,91323.0,0.41814]
[1765169864102,0.002,91324.0,91323.0,0.92602]
[1765169864904,0.002,91324.0,91323.0,0.92598]
[1765169869505,0.05701,91324.0,91323.0,0.41814]
[1765169869695,0.05701,91324.0,91323.0,0.92598]
[1765169875507,0.05701,91324.0,91323.0,0.41814]
[1765169876014,0.05701,91324.0,91323.0,0.92594]
[1765169881712,0.07348,91324.0,91323.0,0.92594]
[1765169882011,0.07348,91324.0,91323.0,0.41739]
[1765169882404,0.05701,91324.0,91323.0,0.41739]
[1765169885011,0.0109503,91323.0,91320.0,0.56656849]
[1765169885216,0.05693,91321.0,91320.0,0.02903]
[1765169885611,0.05693,91321.0,91315.0,0.50784]
[1765169885612,0.0678811,91316.0,91315.0,0.50784]
[1765169885813,0.01647,91320.0,91305.0,0.01143893]
[1765169885814,0.05693,91306.0,91305.0,0.12846742]
[1765169886017,0.05693,91306.0,91305.0,0.06969893]
[1765169886913,0.05693,91306.0,91305.0,0.07169893]
[1765169888618,0.05693,91306.0,91305.0,0.06969893]
[1765169889607,0.001,91306.0,91305.0,0.08691893]
[1765169890007,0.05793,91306.0,91305.0,0.08691893]
[1765169890314,0.001,91306.0,91305.0,0.08691893]
[1765169890513,0.03018,91306.0,91305.0,0.08691893]
[1765169890714,0.05793,91306.0,91305.0,0.06969893]
[1765169891113,0.05793,91306.0,91305.0,0.08691893]
[1765169891314,0.001,91306.0,91305.0,0.08691893]
[1765169891516,0.05793,91306.0,91305.0,0.08691893]
[1765169891815,0.05793,91306.0,91305.0,0.06969893]
[1765169892232,0.05793,91306.0,91305.0,0.01143893]
[1765169892430,0.05793,91306.0,91305.0,0.06709893]
[1765169892817,0.05693,91306.0,91305.0,0.06809893]
[1765169894120,0.05693,91306.0,91305.0,0.00116426]
[1765169894527,0.05693,91306.0,91305.0,0.00016426]
[1765169894528,0.05793,91306.0,91305.0,0.00016426]
[1765169894725,0.0109537,91296.0,91291.0,0.0109541]
[1765169894925,0.05631,91292.0,91291.0,0.5744941]
[1765169895114,0.05631,91292.0,91291.0,0.58568033]
[1765169895314,0.05631,91292.0,91291.0,0.57472623]
[1765169895519,0.05631,91292.0,91291.0,0.06684623]
[1765169896125,0.05631,91292.0,91291.0,0.06784623]
[1765169898626,0.0672633,91298.0,91297.0,0.05566]
[1765169901427,0.05631,91292.0,91291.0,0.06684623]
[1765169902727,0.01663,91302.0,91291.0,0.06684623]
[1765169902728,0.11164149,91310.0,91300.0,0.02806]
[1765169902932,0.067263,91301.0,91300.0,0.05566]
[1765169904336,0.068263,91301.0,91300.0,0.05566]
[1765169907031,0.0109538,91295.0,91292.0,0.05566]
[1765169907246,0.05631,91293.0,91292.0,0.05566]
[1765169908151,0.05631,91293.0,91292.0,0.05666]
[1765169908752,0.05631,91293.0,91292.0,0.067614]
[1765169909753,0.05631,91293.0,91292.0,0.066614]
[1765169909958,0.05631,91293.0,91292.0,0.067614]
[1765169910860,0.05631,91293.0,91292.0,0.05666]
[1765169911248,0.05631,91293.0,91292.0,0.02906]
[1765169911759,0.05631,91293.0,91292.0,0.05666]
[1765169914361,0.0109536,91296.0,91295.0,0.05566]
[1765169914745,0.09142502,91296.0,91295.0,0.05566]
[1765169919455,0.09142502,91296.0,91291.0,0.01118623]
[1765169919456,0.067264,91292.0,91291.0,0.01118623]
[1765169919652,0.09142542,91292.0,91291.0,0.05566]
[1765169920054,0.09142542,91292.0,91291.0,0.06652412]
[1765169921060,0.09142542,91292.0,91291.0,0.06752412]
[1765169922154,0.067264,91292.0,91291.0,0.06752412]
[1765169924351,0.09176479,91292.0,91291.0,0.06752412]
[1765169935759,0.067264,91292.0,91291.0,0.06752412]
[1765169938168,0.077384,91292.0,91291.0,0.06752412]
[1765169939371,0.067264,91292.0,91291.0,0.06752412]
[1765169942361,0.067264,91292.0,91291.0,0.07847822]
[1765169942763,0.02926,91292.0,91291.0,0.07847822]
[1765169943267,0.3608,91298.0,91297.0,0.05706]
[1765169943463,0.02450118,91298.0,91297.0,0.05706]
[1765169943668,0.0690722,91308.0,91307.0,0.05706]
[1765169943866,0.09357158,91308.0,91307.0,0.05706]
[1765169945369,0.0710722,91308.0,91307.0,0.05706]
[1765169946966,0.0700722,91308.0,91307.0,0.05706]
[1765169947369,0.0879122,91308.0,91307.0,0.05706]
[1765169948468,0.0869122,91308.0,91307.0,0.05706]
[1765169948772,0.0879122,91308.0,91307.0,0.05706]
[1765169949676,0.05812,91299.0,91298.0,0.05706]
[1765169951077,0.05812,91299.0,91298.0,0.05806]
[1765169951881,0.05812,91299.0,91298.0,0.05706]
[1765169953276,0.05912,91299.0,91298.0,0.05706]
[1765169954581,0.0664339,91293.0,91292.0,0.41854]
[1765169955080,0.0664339,91293.0,91292.0,0.429494]
[1765169955081,0.05548,91293.0,91292.0,0.429494]
[1765169955780,0.05548,91293.0,91292.0,0.41854]
[1765169956775,0.05548,91293.0,91292.0,0.41954]
[1765169958179,0.02792,91293.0,91292.0,0.430494]
[1765169958381,0.0664334,91298.0,91297.0,0.05774]
[1765169959084,0.05548,91298.0,91297.0,0.05774]
[1765169959882,0.001,91298.0,91297.0,0.05774]
[1765169960984,0.0664325,91305.0,91304.0,0.05774]
[1765169961170,0.09112042,91305.0,91304.0,0.05774]
[1765169961374,0.08016792,91305.0,91304.0,0.05774]
[1765169964087,0.08116792,91305.0,91304.0,0.05774]
[1765169967482,0.05648,91305.0,91304.0,0.05774]
[1765169968383,0.08117504,91305.0,91304.0,0.05774]
[1765169969785,0.05648,91305.0,91304.0,0.05774]
[1765169969987,0.08117735,91305.0,91304.0,0.05774]
[1765169970587,0.05648,91305.0,91304.0,0.05774]
[1765169971186,0.05648,91305.0,91304.0,0.07433]
[1765169971387,0.08117949,91305.0,91304.0,0.07433]
[1765169972083,0.05648,91305.0,91304.0,0.07433]
[1765169979490,0.05548,91305.0,91304.0,0.07433]
[1765169979690,0.05648,91305.0,91304.0,0.07433]
[1765169980090,0.001,91305.0,91304.0,0.07433]
[1765169980583,0.001,91305.0,91304.0,0.94309]
[1765169982784,0.02766798,91315.0,91314.0,0.0674314]
[1765169982984,0.02766798,91315.0,91314.0,0.4282314]
[1765169984495,0.02966798,91315.0,91314.0,0.4282314]
[1765169984996,0.00210798,91315.0,91314.0,0.4282314]
[1765169985298,0.05912798,91315.0,91314.0,0.4282314]
[1765169987690,0.05912798,91315.0,91314.0,0.41728]
[1765169991801,0.02954798,91315.0,91314.0,0.41728]
[1765169992000,0.00210798,91315.0,91314.0,0.41728]
[1765169995404,0.12830014,91330.0,91329.0,0.05567]
[1765169995704,0.05702,91330.0,91329.0,0.05567]
[1765169996705,0.06302,91330.0,91329.0,0.05667]
[1765169996903,0.06302,91330.0,91329.0,0.0676196]
[1765169998207,0.06302,91330.0,91329.0,0.05667]
[1765170000407,0.06302,91330.0,91329.0,0.001]
[1765170000605,0.42382,91330.0,91329.0,0.001]
[1765170001020,0.44849166,91330.0,91329.0,0.001]
[1765170001707,0.0693923,91306.0,91305.0,0.05784426]
[1765170001907,0.0693923,91306.0,91305.0,0.41864426]
[1765170002208,0.0693923,91306.0,91305.0,0.02811426]
[1765170002711,0.0693923,91306.0,91305.0,0.05784426]
[1765170003310,0.05844,91306.0,91305.0,0.05784426]
[1765170004510,0.0693923,91306.0,91305.0,0.05784426]
[1765170005707,0.0703923,91306.0,91305.0,0.05784426]
[1765170006317,0.0693923,91306.0,91305.0,0.05784426]
[1765170006618,0.05944,91306.0,91305.0,0.05784426]
[1765170007104,0.05844,91306.0,91305.0,0.05784426]
[1765170007304,0.05944,91306.0,91305.0,0.05784426]
[1765170010010,0.05944,91306.0,91305.0,0.00016426]
[1765170012309,0.05944,91306.0,91295.0,0.41985]
[1765170012310,0.05508,91296.0,91295.0,0.41985]
[1765170013523,0.05508,91296.0,91295.0,0.42185]
[1765170015019,0.05508,91296.0,91295.0,0.41985]
[1765170015220,0.05508,91296.0,91295.0,0.42085]
[1765170015811,0.05508,91296.0,91295.0,0.05905]
[1765170017214,0.05508,91292.0,91286.0,0.00016426]
[1765170017524,0.05508,91292.0,91291.0,0.0295]
[1765170018218,0.05508,91292.0,91291.0,0.04066018]
[1765170018523,0.05508,91292.0,91291.0,0.04166018]
[1765170019418,0.05508,91292.0,91291.0,0.01116018]
[1765170019624,0.05508,91287.0,91286.0,0.02966426]
[1765170019826,0.05508,91287.0,91286.0,0.05921426]
[1765170021726,0.05508,91287.0,91286.0,0.06021426]
[1765170027226,0.05508,91287.0,91286.0,0.00116426]
[1765170029031,0.05508,91287.0,91286.0,0.03066426]
[1765170029220,0.41588,91287.0,91286.0,0.03066426]
[1765170029632,0.41588,91287.0,91286.0,0.00116426]
[1765170030630,0.41688,91287.0,91286.0,0.00016426]
[1765170030836,0.01104,91275.0,91272.0,0.0295]
[1765170031039,0.01104,91275.0,91251.0,0.3608]
[1765170031040,0.05508,91262.0,91261.0,0.41985]
[1765170031738,0.05508,91262.0,91261.0,0.43090395]
[1765170031935,0.05508,91262.0,91261.0,0.41985]
[1765170032235,0.05508,91262.0,91261.0,0.4310978]
[1765170032743,0.05508,91262.0,91261.0,0.41985]
[1765170033039,0.05508,91262.0,91261.0,0.05905]
[1765170033228,0.05508,91253.0,91252.0,0.05932776]
[1765170033835,0.05508,91253.0,91252.0,0.07039823]
[1765170034139,0.05508,91253.0,91252.0,0.05932776]
[1765170035531,0.05508,91253.0,91252.0,0.07022476]
[1765170036332,0.05508,91253.0,91252.0,0.08118356]
[1765170043233,0.05508,91253.0,91252.0,0.07022476]
[1765170044037,0.4275773,91265.0,91264.0,0.05718]
[1765170044941,0.41662,91265.0,91264.0,0.05718]
[1765170045149,0.3608,91265.0,91264.0,0.05718]
[1765170046041,0.3628,91265.0,91264.0,0.05718]
[1765170046843,0.002,91265.0,91264.0,0.05718]
[1765170049036,0.05782,91265.0,91264.0,0.05718]
[1765170049846,0.002,91265.0,91264.0,0.05718]
[1765170051049,0.3608,91286.0,91270.0,0.0809667]
[1765170051240,0.3608,91286.0,91270.0,0.4417667]
[1765170052142,0.00416435,91271.0,91270.0,0.4427667]
[1765170053048,0.00016435,91271.0,91270.0,0.4437667]
[1765170054346,0.05598435,91271.0,91270.0,0.9518867]
[1765170055043,0.05598435,91271.0,91270.0,0.9528867]
[1765170055649,0.02815435,91271.0,91270.0,0.9528867]
[1765170057539,0.02815435,91271.0,91270.0,0.9518867]
[1765170058945,0.02815435,91271.0,91270.0,0.9498867]
[1765170059145,0.02815435,91271.0,91270.0,0.9518867]
[1765170060540,0.00016435,91271.0,91270.0,0.9518867]
[1765170060746,0.00016435,91271.0,91270.0,0.9498867]
[1765170060946,0.00016435,91271.0,91270.0,0.9518867]
[1765170061644,0.00016435,91271.0,91270.0,0.9498867]
[1765170061847,0.00016435,91271.0,91270.0,0.9518867]
[1765170062241,0.41617,91286.0,91285.0,0.06648]
[1765170062441,0.05537,91286.0,91285.0,0.06648]
[1765170066055,0.05537,91286.0,91285.0,0.05513]
[1765170066767,0.05537,91286.0,91285.0,0.07181]
[1765170067654,0.05537,91286.0,91285.0,0.05513]
[1765170074859,0.05537,91286.0,91285.0,0.02802]
[1765170075062,0.05819,91279.0,91278.0,0.02778]
[1765170075262,0.05819,91277.0,91276.0,0.00016435]
[1765170077362,0.05819,91277.0,91276.0,0.00216435]
[1765170078069,0.05819,91277.0,91276.0,0.00016435]
[1765170078466,0.05819,91277.0,91276.0,0.05683435]
[1765170081678,0.05819,91277.0,91276.0,0.02794435]
[1765170082778,0.05819,91277.0,91276.0,0.00016435]
[1765170083170,0.05819,91277.0,91276.0,0.05683435]
[1765170083880,0.05819,91277.0,91276.0,0.02794435]
[1765170085182,0.05819,91277.0,91276.0,0.00016435]
[1765170085373,0.05819,91277.0,91261.0,0.07845287]
[1765170085374,0.05819,91262.0,91261.0,0.13512287]
[1765170085577,0.05819,91262.0,91261.0,0.05667]
[1765170085774,0.05819,91262.0,91261.0,0.0676277]
[1765170086372,0.05819,91262.0,91261.0,0.0696277]
[1765170087176,0.05819,91262.0,91261.0,0.05867]
[1765170087480,0.05819,91262.0,91261.0,0.002]
[1765170088578,0.05819,91253.0,91252.0,0.42864476]
[1765170090278,0.05819,91253.0,91252.0,0.42964476]
[1765170090884,0.02896,91260.0,91259.0,0.05667]
[1765170091290,0.05819,91260.0,91259.0,0.05667]
[1765170092082,0.05919,91260.0,91259.0,0.05667]
[1765170092683,0.05819,91260.0,91259.0,0.05667]
[1765170094588,0.02896,91260.0,91259.0,0.05667]
[1765170095191,0.05819,91260.0,91259.0,0.05667]
[1765170096390,0.05819,91260.0,91259.0,0.05767]
[1765170101990,0.07464,91260.0,91259.0,0.05767]
[1765170102601,0.05819,91260.0,91259.0,0.05767]
[1765170106897,0.07464,91260.0,91259.0,0.05767]
[1765170108591,0.05819,91260.0,91259.0,0.05767]
[1765170112198,0.07464,91260.0,91259.0,0.05767]
[1765170113297,0.07464,91260.0,91259.0,0.02878]
[1765170113499,0.07464,91260.0,91259.0,0.001]
[1765170113698,0.07464,91260.0,91259.0,0.02882]
[1765170113899,0.07464,91260.0,91259.0,0.05637]
[1765170114200,0.07464,91260.0,91259.0,0.02882]
[1765170114900,0.07464,91260.0,91259.0,0.05637]
[1765170125721,0.0679687,91253.0,91252.0,0.00027776]
[1765170125904,0.05701,91247.0,91246.0,0.00027399]
[1765170126208,0.0679694,91247.0,91246.0,0.02884399]
[1765170126602,0.01666,91248.0,91240.0,0.00109602]
[1765170126603,0.0679701,91241.0,91240.0,0.00109602]
[1765170126997,0.06804685,91241.0,91240.0,0.00109602]
[1765170127400,0.0679712,91232.0,91231.0,0.05667435]
[1765170129612,0.0689712,91232.0,91231.0,0.05967435]
[1765170129798,0.0689712,91232.0,91231.0,0.06167435]
[1765170132515,0.0689712,91232.0,91231.0,0.06187435]
[1765170136410,0.0689712,91232.0,91231.0,0.00516435]
[1765170137306,0.05776,91218.0,91217.0,0.41751]
[1765170138416,0.05776,91218.0,91217.0,0.43151]
[1765170138617,0.05876,91218.0,91217.0,0.44255106]
[1765170141409,0.05876,91218.0,91217.0,0.08175106]
[1765170142308,0.001,91218.0,91217.0,0.08175106]
[1765170142718,0.001,91218.0,91217.0,0.23175106]
[1765170143024,0.00016435,91227.0,91217.0,0.23175106]
[1765170143218,0.00016435,91227.0,91226.0,0.35873141]
[1765170143219,0.05792435,91227.0,91226.0,0.35873141]
[1765170143419,0.0687229,91218.0,91217.0,0.00869302]
[1765170143625,0.7903229,91218.0,91217.0,0.00869302]
[1765170144017,0.05776,91216.0,91215.0,0.00109632]
[1765170144323,0.068724,91209.0,91196.0,9.019e-05]
[1765170144511,0.068724,91209.0,91206.0,6e-08]
[1765170144512,0.05776,91207.0,91206.0,6e-08]
[1765170144709,0.0687254,91197.0,91196.0,9.019e-05]
[1765170144909,0.05776,91181.0,91180.0,0.06772769]
[1765170145115,0.05776,91181.0,91180.0,0.05671]
[1765170145317,0.0687274,91181.0,91180.0,0.05671]
[1765170145624,0.0754,91175.0,91170.0,0.3684211]
[1765170145819,0.0754,91175.0,91171.0,0.00010986]
[1765170146028,0.05787483,91174.0,91172.0,0.0109684]
[1765170146823,0.05787483,91174.0,91171.0,0.01128508]
[1765170147030,0.05776,91172.0,91171.0,0.01128508]
[1765170147925,0.05776,91172.0,91171.0,0.01628508]
[1765170148126,0.05776,91172.0,91171.0,0.02228508]
[1765170148525,0.05776,91172.0,91171.0,0.01828508]
[1765170148726,0.05776,91172.0,91171.0,0.01228508]
[1765170148929,0.05876,91172.0,91171.0,0.01728508]
[1765170150725,0.05876,91172.0,91171.0,0.00610986]
[1765170150927,0.0687292,91166.0,91165.0,1e-08]
[1765170151155,0.05776,91141.0,91140.0,0.00109722]
[1765170151357,0.05789693,91141.0,91140.0,0.00109722]
[1765170153543,0.05889693,91141.0,91140.0,0.01009722]
[1765170154360,0.00113693,91141.0,91140.0,0.01009722]
[1765170159655,0.02940693,91141.0,91140.0,0.01009722]
[1765170159860,0.00113693,91141.0,91140.0,0.01009722]
[1765170160649,0.05889693,91141.0,91140.0,0.01009722]
[1765170160856,0.00113693,91141.0,91140.0,0.01009722]
[1765170161858,0.00113693,91141.0,91140.0,0.06974722]
[1765170163359,0.00016454,91150.0,91149.0,0.05965]
[1765170163558,0.00016454,91150.0,91149.0,0.4314212]
[1765170164659,0.00124252,91150.0,91149.0,0.4364212]
[1765170166258,0.00124252,91150.0,91149.0,0.7864212]
[1765170166856,0.08385,91175.0,91174.0,0.05965]
[1765170167360,0.3608,91177.0,91176.0,0.05965]
[1765170167558,0.3608,91186.0,91185.0,0.0706169]
[1765170168061,0.42678,91186.0,91185.0,0.0706169]
[1765170168263,0.06598,91186.0,91185.0,0.0706169]
[1765170168460,0.06598,91186.0,91185.0,0.05965]
[1765170169849,0.06798,91186.0,91185.0,0.07183749]
[1765170170249,0.06798,91186.0,91185.0,0.06065]
[1765170170460,0.07998,91186.0,91185.0,0.06065]
[1765170170665,0.07898,91186.0,91185.0,0.06065]
[1765170170865,0.06698,91186.0,91185.0,0.06065]
[1765170171056,0.07898,91186.0,91185.0,0.06065]
[1765170171963,0.07898,91186.0,91185.0,0.001]
[1765170172961,0.06598,91179.0,91178.0,0.3608]
[1765170173164,0.06598,91177.0,91176.0,0.00016454]
[1765170174663,0.07498,91177.0,91176.0,0.00016454]
[1765170175064,0.06598,91170.0,91169.0,0.3608]
[1765170176465,0.06598,91160.0,91159.0,0.43142]
[1765170176862,0.06598,91160.0,91159.0,0.44223069]
[1765170177568,0.07198,91160.0,91159.0,0.3608]
[1765170177773,0.07378,91151.0,91150.0,0.41358]
[1765170177963,0.07378,91151.0,91150.0,0.3608]
[1765170178271,0.07378,91151.0,91150.0,0.42453812]
[1765170179263,0.07478,91151.0,91150.0,0.42753812]
[1765170180570,0.07778,91151.0,91150.0,0.42753812]
[1765170180768,0.004,91151.0,91150.0,0.42753812]
[1765170181268,0.07778,91151.0,91150.0,0.42753812]
[1765170181858,0.07778,91151.0,91150.0,0.37475812]
[1765170182260,0.07778,91151.0,91150.0,0.42753812]
[1765170182658,0.07778,91151.0,91150.0,0.40114812]
[1765170183371,0.088751,91151.0,91150.0,0.39019]
[1765170183567,0.088751,91151.0,91150.0,0.3638]
[1765170184066,0.088751,91151.0,91150.0,0.003]
[1765170187578,0.088751,91151.0,91150.0,0.00178509]
[1765170189675,0.0847522,91141.0,91140.0,0.00109722]
[1765170189875,0.4455522,91141.0,91140.0,0.00109722]
[1765170190875,0.4465522,91141.0,91140.0,0.00309722]
[1765170191075,0.4495522,91141.0,91140.0,0.00309722]
[1765170197481,0.0109745,91122.0,91119.0,0.3608]
[1765170197682,0.07503,91120.0,91119.0,0.40298]
[1765170197885,0.07503,91120.0,91119.0,0.41371354]
[1765170198470,0.07512975,91120.0,91119.0,0.41371354]
[1765170198674,0.07512975,91120.0,91119.0,0.41571354]
[1765170199079,0.07512975,91120.0,91119.0,0.40498]
[1765170199476,0.07512975,91120.0,91119.0,0.3628]
[1765170199677,0.07512975,91120.0,91119.0,0.3728]
[1765170199872,0.07512975,91120.0,91119.0,0.01]
[1765170200072,0.07612975,91120.0,91119.0,0.01]
[1765170200277,0.07612975,91120.0,91117.0,0.05319948]
[1765170200278,0.07503,91118.0,91117.0,0.05319948]
[1765170200483,0.07503,91118.0,91117.0,0.04218]
[1765170200979,0.07503,91118.0,91117.0,0.02109]
[1765170201179,0.07503,91118.0,91117.0,0.04218]
[1765170201380,0.07503,91118.0,91117.0,0.05318]
[1765170201579,0.07603,91118.0,91117.0,0.05318]
[1765170202181,0.07603,91118.0,91117.0,0.06432591]
[1765170203183,0.07603,91118.0,91117.0,0.03209]
[1765170203382,0.07603,91118.0,91117.0,0.05318]
[1765170204484,0.07603,91118.0,91117.0,0.04918]
[1765170204788,0.03977,91118.0,91117.0,0.04918]
[1765170205089,0.07603,91118.0,91117.0,0.04918]
[1765170206989,0.001,91118.0,91117.0,0.04918]
[1765170211198,0.03977,91118.0,91117.0,0.04918]
[1765170211498,0.07603,91118.0,91117.0,0.04918]
[1765170217995,0.07603,91118.0,91117.0,0.02809]
[1765170218190,0.07603,91118.0,91117.0,0.04918]
[1765170219198,0.07603,91118.0,91117.0,0.007]
[1765170219689,0.07603,91118.0,91117.0,0.02809]
[1765170220088,0.07603,91118.0,91117.0,0.02409]
[1765170220699,0.07503,91118.0,91117.0,0.003]
[1765170220894,0.07603,91118.0,91117.0,0.003]
[1765170221704,0.07603,91118.0,91117.0,0.02409]
[1765170222803,0.07603,91118.0,91117.0,0.003]
[1765170229804,0.07603,91118.0,91117.0,0.0354551]
[1765170231607,0.001,91118.0,91117.0,0.11390797]
[1765170231807,0.001,91118.0,91117.0,0.0354551]
[1765170233410,0.06988,91118.0,91117.0,0.0354551]
[1765170235911,0.001,91118.0,91117.0,0.0354551]
[1765170236107,0.06988,91118.0,91117.0,0.0354551]
[1765170237209,0.06988,91118.0,91117.0,0.02448]
[1765170237514,0.06988,91118.0,91117.0,0.53384]
[1765170240521,0.06988,91118.0,91117.0,0.02448]
[1765170240816,0.06988,91118.0,91117.0,0.003]
[1765170241022,0.06988,91118.0,91117.0,0.08196806]
[1765170241820,0.06988,91118.0,91117.0,0.09270806]
[1765170242024,0.06988,91118.0,91117.0,0.08196806]
[1765170242818,0.06988,91118.0,91117.0,0.02448]
[1765170243324,0.001,91118.0,91117.0,0.02448]
[1765170244825,0.03762,91118.0,91117.0,0.02448]
[1765170245027,0.001,91118.0,91117.0,0.02448]
[1765170245919,0.03762,91118.0,91117.0,0.02448]
[1765170246930,0.06988,91118.0,91117.0,0.02448]
[1765170251443,0.06988,91118.0,91117.0,0.003]
[1765170251928,0.06988,91118.0,91117.0,0.00626]
[1765170253340,0.06988,91118.0,91117.0,0.003]
[1765170253542,0.06988,91118.0,91117.0,0.08195328]
[1765170253732,0.06988,91118.0,91117.0,0.003]
[1765170254741,0.06988,91118.0,91117.0,0.00468]
[1765170255733,0.06988,91118.0,91117.0,0.003]
[1765170256946,0.06988,91118.0,91117.0,0.00384]
[1765170257139,0.06988,91118.0,91117.0,0.003]
[1765170260845,0.06988,91118.0,91116.0,0.39567328]
[1765170261150,0.02652,91099.0,91098.0,0.07093315]
[1765170261342,0.0374972,91099.0,91098.0,0.07093315]
[1765170261945,0.02652,91099.0,91098.0,0.08950315]
[1765170262840,0.02752,91099.0,91098.0,0.08950315]
[1765170263354,0.02752,91099.0,91098.0,0.09250315]
[1765170263849,0.001,91099.0,91098.0,0.44250315]
[1765170264047,0.001,91099.0,91098.0,0.45330315]
[1765170264242,0.001,91099.0,91098.0,0.87330315]
[1765170264551,0.00016463,91108.0,91107.0,0.4317663]
[1765170264745,0.00016463,91108.0,91107.0,1.1011263]
[1765170265050,0.00016463,91108.0,91107.0,0.7403263]
[1765170265348,9.975e-05,91120.0,91119.0,0.0895348]
[1765170266146,0.02861975,91120.0,91119.0,0.0895348]
[1765170267242,0.03561975,91120.0,91119.0,0.0895348]
[1765170271249,0.00709975,91120.0,91119.0,0.0895348]
[1765170272451,0.03561975,91120.0,91119.0,0.0895348]
[1765170272651,0.02852,91117.0,91116.0,0.50936]
[1765170272859,0.02852,91111.0,91110.0,0.00016463]
[1765170273044,0.0109757,91112.0,91096.0,0.07884592]
[1765170273045,0.0394972,91099.0,91096.0,0.07884592]
[1765170273358,0.02852,91093.0,91092.0,0.07856]
[1765170273659,0.02861975,91093.0,91092.0,0.07856]
[1765170274348,0.02861975,91093.0,91092.0,0.08965488]
[1765170274349,9.975e-05,91093.0,91092.0,0.08965488]
[1765170274661,0.02961975,91093.0,91092.0,0.09165488]
[1765170275455,0.01535975,91093.0,91092.0,0.09165488]
[1765170275957,0.02961975,91093.0,91092.0,0.09165488]
[1765170276650,0.00109975,91093.0,91092.0,0.09165488]
[1765170277155,0.01535975,91093.0,91092.0,0.09165488]
[1765170277456,0.02961975,91093.0,91092.0,0.08056]
[1765170277950,0.02961975,91093.0,91092.0,0.0914833]
[1765170278257,0.00109975,91093.0,91092.0,0.0914833]
[1765170279354,0.00016463,91102.0,91101.0,0.070967]
[1765170279658,0.02852,91122.0,91121.0,0.05999]
[1765170280756,0.03652,91122.0,91121.0,0.0709646]
[1765170281253,0.011,91122.0,91121.0,0.0709646]
[1765170282255,0.009,91122.0,91121.0,0.0709646]
[1765170282764,0.03053463,91131.0,91130.0,0.0784735]
[1765170283154,0.06556463,91131.0,91130.0,0.0784735]
[1765170283962,0.06756463,91131.0,91130.0,0.0784735]
[1765170284463,0.06856463,91131.0,91130.0,0.0794735]
[1765170286258,0.00316463,91131.0,91130.0,0.2294735]
[1765170286463,0.0109707,91154.0,91130.0,0.2294735]
[1765170286464,0.0460007,91154.0,91153.0,0.0675]
[1765170286767,0.10160536,91154.0,91153.0,0.0675]
[1765170287363,0.0763707,91154.0,91153.0,0.0675]
[1765170287864,0.0813707,91154.0,91153.0,0.0675]
[1765170289058,0.0933707,91154.0,91153.0,0.0675]
[1765170289561,0.0803707,91154.0,91153.0,0.0675]
[1765170289760,0.0893707,91154.0,91153.0,0.0675]
[1765170290366,0.0893707,91154.0,91153.0,0.0685]
[1765170294568,0.0784,91154.0,91153.0,0.0685]
[1765170299678,0.013,91154.0,91153.0,0.0685]
[1765170300972,0.04262,91154.0,91153.0,0.0685]
[1765170301185,0.07224,91154.0,91153.0,0.0685]
[1765170301479,0.04262,91154.0,91153.0,0.0685]
[1765170303371,0.07224,91154.0,91153.0,0.0685]
[1765170303872,0.013,91154.0,91153.0,0.0685]
[1765170307477,0.07224,91154.0,91153.0,0.0685]
[1765170307972,0.07224,91154.0,91153.0,0.03529]
[1765170308174,0.07224,91154.0,91153.0,0.001]
[1765170308366,0.07224,91154.0,91153.0,0.03529]
[1765170308770,0.07224,91154.0,91153.0,0.001]
[1765170310381,0.09726676,91154.0,91153.0,0.001]
[1765170310976,0.09726676,91154.0,91153.0,0.03529]
[1765170311281,0.09726676,91154.0,91153.0,0.06958]
[1765170311979,0.013,91154.0,91153.0,0.06958]
[1765170312379,0.06224,91154.0,91153.0,0.06958]
[1765170313180,0.06224,91154.0,91153.0,0.03529]
[1765170313482,0.06224,91154.0,91153.0,0.06862]
[1765170315482,0.08730083,91154.0,91153.0,0.06862]
[1765170316388,0.08730083,91154.0,91153.0,0.03529]
[1765170316586,0.08730083,91154.0,91153.0,0.001]
[1765170319083,0.08730083,91154.0,91153.0,0.06984]
[1765170320585,0.03806083,91154.0,91153.0,0.06984]
[1765170320985,0.013,91154.0,91153.0,0.06984]
[1765170321187,0.00016463,91163.0,91162.0,0.06884]
[1765170321382,0.06677463,91163.0,91162.0,0.06884]